fUSD/lending_fUSD_20240918
["ID","MTS","AMOUNT","RATE_DAILY","PERIOD"]
[338485192,1726694538406,289.46476773,0.00012534,2]
[338485193,1726694538434,210.53523227,0.00012534,2]
[338485194,1726694541765,204.75982028,0.00012682,2]
[338485195,1726694548735,150.0,0.00011969,2]
[338485196,1726694548758,100.0,0.00011969,2]
[338485197,1726694556189,150.0,0.00011164,2]
[338485198,1726694556212,150.0,0.00011164,2]
[338485199,1726694556235,150.0,0.00011164,2]
[338485200,1726694556257,50.0,0.00011164,2]
[338485201,1726694560541,250.0,0.00011974,2]
[338485202,1726694562496,500.0,0.00011164,2]
[338485203,1726694581535,150.0,0.00011961,2]
[338485204,1726694581555,150.0,0.00011961,2]
[338485205,1726694581576,146.68,0.00011961,2]
[338485206,1726694600171,150.0,0.000127,2]
[338485207,1726694600193,64.216,0.000127,2]
[338485208,1726694614360,150.0,0.00012699,2]
[338485209,1726694614381,150.0,0.00012699,2]
[338485210,1726694614406,127.1886,0.00012699,2]
[338485211,1726694619986,291.18,0.00010959,2]
[338485212,1726694637218,150.0,0.000126,4]
[338485213,1726694637241,50.0,0.000126,4]
[338485214,1726694639347,500.0,0.000127,4]
[338485215,1726694653627,177.24,0.00010959,2]
[338485216,1726694658796,150.0,0.000127,2]
[338485217,1726694658817,150.0,0.000127,2]
[338485218,1726694658839,107.3823126,0.000127,2]
[338485219,1726694659408,42.6176874,0.00011164,2]
[338485220,1726694659429,150.0,0.00011164,2]
[338485221,1726694659450,150.0,0.00011164,2]
[338485222,1726694659471,150.0,0.00011164,2]
[338485223,1726694659493,7.3823126,0.00011164,2]
[338485224,1726694672213,150.0,0.00011953,2]
[338485225,1726694672234,150.0,0.00011953,2]
[338485226,1726694672256,150.0,0.00011953,2]
[338485227,1726694672276,150.0,0.00011953,2]
[338485228,1726694672297,150.0,0.00011953,2]
[338485229,1726694672317,90.0,0.00011953,2]
[338485230,1726694676040,97.2630874,0.00011953,2]
[338485231,1726694676065,347.5469126,0.00011953,2]
[338485232,1726694685527,500.0,0.00012485,2]
[338485233,1726694685874,500.0,0.00012485,2]
[338485234,1726694686326,500.0,0.00012485,2]
[338485235,1726694686605,200.0,0.00012485,2]
[338485236,1726694686811,200.0,0.00012485,2]
[338485237,1726694687076,500.0,0.00012485,2]
[338485238,1726694687148,200.0,0.00012485,2]
[338485239,1726694687491,200.0,0.00012485,2]
[338485240,1726694687987,500.0,0.00012485,2]
[338485241,1726694688094,252.0,0.00012485,2]
[338485242,1726694689029,500.0,0.00012485,2]
[338485243,1726694689268,500.0,0.00012485,2]
[338485244,1726694689579,500.0,0.00012485,2]
[338485245,1726694689898,500.0,0.00012485,2]
[338485246,1726694690205,500.0,0.00012485,2]
[338485247,1726694690526,500.0,0.00012485,2]
[338485248,1726694691696,500.0,0.00012485,2]
[338485249,1726694692055,500.0,0.00012485,2]
[338485250,1726694692128,500.0,0.00012485,2]
[338485251,1726694692210,500.0,0.00012485,2]
[338485252,1726694692307,500.0,0.00012485,2]
[338485253,1726694692583,500.0,0.00012485,2]
[338485254,1726694692957,500.0,0.00012485,2]
[338485255,1726694693361,500.0,0.00012485,2]
[338485256,1726694693556,500.0,0.00012485,2]
[338485257,1726694694506,500.0,0.00012485,2]
[338485258,1726694694791,500.0,0.00012485,2]
[338485259,1726694695238,500.0,0.00012485,2]
[338485260,1726694695425,500.0,0.00012485,2]
[338485261,1726694695749,500.0,0.00012485,2]
[338485262,1726694696119,500.0,0.00012485,2]
[338485263,1726694696391,500.0,0.00012485,2]
[338485264,1726694696528,250.0,0.00011959,2]
[338485265,1726694696758,500.0,0.00012485,2]
[338485266,1726694697050,500.0,0.00012485,2]
[338485267,1726694697545,500.0,0.00012485,2]
[338485268,1726694697848,500.0,0.00012485,2]
[338485269,1726694698178,500.0,0.00012485,2]
[338485270,1726694698508,500.0,0.00012485,2]
[338485271,1726694698844,500.0,0.00012485,2]
[338485272,1726694699147,500.0,0.00012485,2]
[338485273,1726694699570,500.0,0.00012485,2]
[338485274,1726694699902,500.0,0.00012485,2]
[338485275,1726694700507,500.0,0.00010068,2]
[338485276,1726694700670,500.0,0.00012485,2]
[338485277,1726694700875,500.0,0.00012485,2]
[338485278,1726694700970,500.0,0.00012485,2]
[338485279,1726694701274,500.0,0.00012485,2]
[338485280,1726694701619,500.0,0.00012485,2]
[338485281,1726694702655,500.0,0.00012485,2]
[338485282,1726694702872,500.0,0.00012485,2]
[338485283,1726694703102,500.0,0.00012485,2]
[338485284,1726694703270,500.0,0.00012485,2]
[338485285,1726694703374,500.0,0.00012485,2]
[338485286,1726694703990,500.0,0.00012485,2]
[338485287,1726694704108,500.0,0.00012485,2]
[338485288,1726694704993,500.0,0.00012485,2]
[338485289,1726694705309,500.0,0.00012485,2]
[338485290,1726694705644,500.0,0.00012485,2]
[338485291,1726694706011,500.0,0.00012485,2]
[338485292,1726694706359,500.0,0.00012485,2]
[338485293,1726694708622,154.43,0.00011937,2]
[338485294,1726694708828,154.43,0.00011957,2]
[338485295,1726694708999,154.43,0.00011977,2]
[338485296,1726694709220,154.43,0.00011997,2]
[338485297,1726694710703,500.0,0.00012485,2]
[338485298,1726694711093,500.0,0.00012485,2]
[338485299,1726694711495,500.0,0.00012485,2]
[338485300,1726694712006,500.0,0.00012485,2]
[338485301,1726694712092,500.0,0.00012485,2]
[338485302,1726694712462,500.0,0.00012485,2]
[338485303,1726694713559,500.0,0.00012485,2]
[338485304,1726694714018,500.0,0.00012485,2]
[338485305,1726694714153,500.0,0.00012485,2]
[338485306,1726694714396,500.0,0.00012485,2]
[338485307,1726694714478,500.0,0.00012485,2]
[338485308,1726694714725,500.0,0.00012485,2]
[338485309,1726694715093,500.0,0.00012485,2]
[338485310,1726694715885,500.0,0.00012485,2]
[338485311,1726694716196,500.0,0.00012485,2]
[338485312,1726694716519,500.0,0.00012485,2]
[338485313,1726694716611,500.0,0.00012485,2]
[338485314,1726694716882,500.0,0.00012485,2]
[338485315,1726694717173,500.0,0.00012485,2]
[338485316,1726694717531,500.0,0.00012485,2]
[338485317,1726694717573,600.0,0.00011164,2]
[338485318,1726694717852,500.0,0.00012485,2]
[338485319,1726694718175,500.0,0.00012485,2]
[338485320,1726694718492,500.0,0.00012485,2]
[338485321,1726694718830,500.0,0.00012485,2]
[338485322,1726694719160,500.0,0.00012485,2]
[338485323,1726694719198,600.0,0.00012534,2]
[338485324,1726694719505,500.0,0.00012485,2]
[338485325,1726694719850,532.0,0.00012485,2]
[338485326,1726694720813,168.81,0.0001193,2]
[338485327,1726694720963,150.0,0.00011688,2]
[338485328,1726694724410,500.0,0.00011164,2]
[338485334,1726694829269,900.0,0.000126,4]
[338485335,1726694831374,1800.0,0.000127,4]
[338485336,1726694839254,943.2558,0.000127,2]
[338485337,1726694876245,229.48,0.00011939,2]
[338485338,1726694879423,449.57,0.00011939,2]
[338485339,1726694892237,489.5,0.00010014,2]
[338485340,1726694892668,489.5,0.00012278,2]
[338485349,1726694972802,929.19,0.00011932,2]
[338485353,1726694992100,750.0,0.00011932,2]
[338485354,1726695027319,500.0,0.00011164,2]
[338485355,1726695027785,500.0,0.00011164,2]
[338485356,1726695028066,500.0,0.00011164,2]
[338485357,1726695028415,500.0,0.00011164,2]
[338485358,1726695028867,500.0,0.00011164,2]
[338485359,1726695029231,500.0,0.00011164,2]
[338485360,1726695029798,500.0,0.00011164,2]
[338485361,1726695029908,500.0,0.00011164,2]
[338485362,1726695030238,667.0,0.00011164,2]
[338485363,1726695031264,668.0,0.00011164,2]
[338485403,1726695033065,-150.0,0.00012761,2]
[338485405,1726695033075,-150.0,0.00012782,2]
[338485406,1726695033084,-150.0,0.00012782,2]
[338485408,1726695033093,-300.0,0.00012799,2]
[338485409,1726695033103,-554.9999998,0.000128,2]
[338485410,1726695033118,-1001.07908928,0.000128,2]
[338485411,1726695033129,-209.76621092,0.000128,2]
[338485412,1726695033139,-2958.74408361,0.000128,2]
[338485413,1726695033154,-839.21568449,0.000128,2]
[338485414,1726695033165,-599.63924013,0.000128,2]
[338485415,1726695033181,-329.14260328,0.000128,2]
[338485416,1726695033192,-300.0,0.000128,2]
[338485417,1726695033203,-154318.49638849,0.000128,2]
[338485418,1726695033212,-1003.3889,0.000128,2]
[338485419,1726695033223,-1930.1682,0.000128,2]
[338485420,1726695033232,-2800.0,0.000128,4]
[338485421,1726695033241,-216.68411513,0.000128,2]
[338485422,1726695033250,-150.0,0.00012806,2]
[338485423,1726695033264,-150.0,0.00012807,2]
[338485424,1726695033274,-500.0,0.00012808,2]
[338485425,1726695033283,-150.0,0.0001281,2]
[338485426,1726695033292,-150.0,0.00012841,2]
[338485427,1726695033302,-150.0,0.00012847,2]
[338485428,1726695033311,-769.69,0.00012847,2]
[338485429,1726695033320,-13852.5,0.00012847,2]
[338485430,1726695033330,-150.0,0.00012861,2]
[338485431,1726695033651,-160.06579612,0.00012873,2]
[338485432,1726695033662,-504.81878064,0.00012873,2]
[338485433,1726695033672,-6098.61372581,0.0001288,2]
[338485434,1726695033682,-268.79619324,0.00012888,2]
[338485435,1726695033692,-156.13,0.0001289,2]
[338485436,1726695033701,-746.40542393,0.00012899,2]
[338485437,1726695033711,-500.0,0.00012899,2]
[338485438,1726695033720,-500.0,0.00012899,2]
[338485439,1726695033730,-407.79061455,0.00012899,2]
[338485440,1726695033740,-1145.2368,0.000129,2]
[338485441,1726695033749,-17298.50205064,0.000129,2]
[338485442,1726695033786,-1515.00739933,0.000129,2]
[338485443,1726695033797,-299.00615911,0.000129,2]
[338485444,1726695033808,-1576.81782519,0.000129,2]
[338485445,1726695033835,-2470.53107047,0.000129,2]
[338485446,1726695033846,-588.01158738,0.000129,2]
[338485447,1726695038242,-3524.79836481,0.000129,2]
[338485448,1726695038255,-2894.75,0.000129,2]
[338485449,1726695038270,-4563.20000002,0.000129,2]
[338485450,1726695038287,-6343.80348218,0.000129,2]
[338485452,1726695038299,-2177.28935891,0.000129,2]
[338485454,1726695038311,-254.94212349,0.000129,2]
[338485456,1726695038326,-659.80530843,0.000129,2]
[338485459,1726695038342,-822.49017547,0.000129,2]
[338485460,1726695038397,-1532.4846,0.000129,2]
[338485461,1726695038408,-285.49172499,0.000129,2]
[338485462,1726695038424,-2355.0,0.000129,2]
[338485463,1726695038435,-703.01355159,0.000129,2]
[338485464,1726695038451,-1357.22542988,0.000129,2]
[338485465,1726695038466,-2084.0327375,0.000129,2]
[338485466,1726695038478,-2158.98320904,0.000129,2]
[338485467,1726695038489,-2166.78342138,0.000129,2]
[338485468,1726695038503,-282.04696975,0.000129,2]
[338485469,1726695038515,-566.76354058,0.000129,2]
[338485470,1726695038526,-29517.04542,0.000129,2]
[338485475,1726695040553,-4276.48182047,0.000129,2]
[338485476,1726695040565,-2242.35735466,0.000129,2]
[338485479,1726695040576,-5483.33531473,0.000129,2]
[338485481,1726695040586,-118600.01770779,0.000129,2]
[338485483,1726695040597,-2537.03952318,0.000129,2]
[338485486,1726695040616,-2141.25728077,0.000129,2]
[338485489,1726695040636,-939.63137312,0.000129,2]
[338485491,1726695040647,-414.4410234,0.000129,2]
[338485493,1726695040658,-8646.86063141,0.000129,2]
[338485495,1726695040670,-984.9210532,0.000129,2]
[338485498,1726695040686,-505.53116172,0.000129,2]
[338485500,1726695040697,-470.89476816,0.000129,2]
[338485502,1726695040708,-15626.76194707,0.000129,2]
[338485504,1726695040744,-630.25841339,0.000129,2]
[338485505,1726695040793,-1561.6,0.000129,2]
[338485506,1726695040849,-902.16144431,0.000129,2]
[338485507,1726695040861,-2511.31265484,0.000129,2]
[338485508,1726695040896,-662.70634916,0.000129,2]
[338485509,1726695040907,-516.41228462,0.000129,2]
[338485510,1726695040922,-4379.11477664,0.000129,2]
[338485512,1726695040933,-807.664508,0.000129,2]
[338485514,1726695040948,-798.47801632,0.000129,2]
[338485516,1726695040959,-2476.73398211,0.000129,2]
[338485518,1726695040970,-2954.1894928,0.000129,2]
[338485521,1726695040986,-1592.91767771,0.000129,2]
[338485523,1726695040998,-2675.73797057,0.000129,2]
[338485525,1726695041010,-2141.93843664,0.000129,2]
[338485527,1726695041021,-302.2615324,0.000129,2]
[338485529,1726695041032,-1643.5637199,0.000129,2]
[338485532,1726695041043,-485.3980518,0.000129,2]
[338485534,1726695041054,-49999.84416003,0.000129,2]
[338485858,1726695044295,-5436.26115702,0.000129,2]
[338485865,1726695045927,-2546.34894768,0.000129,2]
[338485866,1726695046072,-65.93255424,0.000129,2]
[338485867,1726695046082,-1041.67909108,0.000129,2]
[338485868,1726695046093,-1740.63,0.000129,2]
[338485869,1726695046105,-8674.95,0.000129,2]
[338485871,1726695047336,-335.451,0.000129,2]
[338485872,1726695047347,-349.99877428,0.000129,2]
[338485873,1726695047496,-101.99213464,0.000129,2]
[338485874,1726695047505,-7772.9538,0.000129,2]
[338485875,1726695047515,-1231.9446,0.000129,2]
[338485876,1726695047528,-500.0,0.000129,2]
[338485877,1726695047538,-1000.0,0.000129,2]
[338485878,1726695047548,-3700.0,0.000129,4]
[338485879,1726695047558,-153.40326019,0.000129,2]
[338485880,1726695047568,-150.0,0.00012915,2]
[338485881,1726695047578,-150.0,0.00012917,2]
[338485882,1726695047587,-150.0,0.00012934,2]
[338485883,1726695047597,-150.0,0.00012946,2]
[338485884,1726695047607,-150.0,0.00012954,2]
[338485885,1726695047616,-150.0,0.00012983,2]
[338485886,1726695047626,-150.0,0.00012983,2]
[338485887,1726695047636,-150.0,0.00012988,2]
[338485888,1726695047645,-293.512,0.00012993,2]
[338485889,1726695047655,-150.0,0.00012996,2]
[338485890,1726695047944,-150.0,0.00012997,2]
[338485891,1726695047954,-300.49052901,0.00012999,2]
[338485892,1726695047963,-198.66651535,0.00012999,3]
[338485893,1726695047974,-201.33348465,0.00012999,3]
[338485894,1726695047983,-1201.21578078,0.00012999,3]
[338485895,1726695047993,-1201.21578078,0.00012999,3]
[338485896,1726695048003,-1201.21578076,0.00012999,3]
[338485897,1726695048013,-851.80717658,0.00012999,3]
[338485898,1726695048028,-349.4086042,0.00012999,3]
[338485899,1726695048038,-1021.47197273,0.00012999,2]
[338485900,1726695048051,-287.88767852,0.00012999,2]
[338485901,1726695048063,-690.64034875,0.00012999,2]
[338485902,1726695048072,-2005.20799365,0.00013,2]
[338485903,1726695048098,-49481.64873752,0.00013,2]
[338485904,1726695048110,-859.59283247,0.00013,2]
[338485905,1726695048121,-5923.552,0.00013,2]
[338485906,1726695048137,-2629.70335,0.00013,2]
[338485907,1726695048149,-1515.49995,0.00013,2]
[338485908,1726695048160,-904.23596,0.00013,2]
[338485909,1726695049598,1500.0,0.00012711,2]
[338485910,1726695066540,170.92,0.00010169,2]
[338485911,1726695072492,501.09970254,0.00011164,2]
[338485912,1726695101144,600.0,0.00010068,2]
[338485913,1726695102064,600.0,0.00011438,2]
[338485914,1726695134528,1118.4846,0.000127,2]
[338485915,1726695141769,250.0,0.00012299,2]
[338485916,1726695152117,161.2,0.00010959,2]
[338485917,1726695157100,500.0,0.00011164,2]
[338485918,1726695159622,500.0,0.00011164,2]
[338485919,1726695161195,500.0,0.00012534,2]
[338485920,1726695166981,500.0,0.00010068,2]
[338485921,1726695184020,625.5602,0.000127,2]
[338485922,1726695196221,250.0,0.00012143,2]
[338485923,1726695224557,800.0,0.00010068,2]
[338485924,1726695226098,800.0,0.00011438,2]
[338485925,1726695237785,328.0,0.0001214,2]
[338485926,1726695300418,214.2,0.00012711,2]
[338485927,1726695300599,214.2,0.00012714,2]
[338485928,1726695300840,214.2,0.00012718,2]
[338485929,1726695301035,214.2,0.00012721,2]
[338485930,1726695301299,214.2,0.00012724,2]
[338485931,1726695301491,214.2,0.00012728,2]
[338485932,1726695301719,214.2,0.00012731,2]
[338485933,1726695301960,214.2,0.00012734,2]
[338485934,1726695302199,214.2,0.00012738,2]
[338485935,1726695302408,214.2,0.00012741,2]
[338485936,1726695306202,732.75604716,0.00012647,2]
[338485937,1726695416140,309.41,0.00012711,2]
[338485938,1726695545770,475.68,0.00010793,2]
[338485939,1726695563004,1192.71,0.00011902,2]
[338485940,1726695611770,174.76,0.00012734,2]
[338485941,1726695612037,174.76,0.00012737,2]
[338485942,1726695613267,250.0,0.00011907,2]
[338485943,1726695640305,764.21,0.00011907,2]
[338485944,1726695640586,170.92,9.526e-05,2]
[338485945,1726695662831,156.44,0.00010959,2]
[338485946,1726695665805,250.0,0.00011911,2]
[338485947,1726695783490,217.06,0.00011901,2]
[338485948,1726695805404,153.0,0.00011901,2]
[338485949,1726695805459,153.0,0.00011906,2]
[338485950,1726695805513,153.0,0.00011911,2]
[338485951,1726695805561,153.0,0.00011915,2]
[338485952,1726695805759,153.0,0.0001192,2]
[338485953,1726695805810,153.0,0.00011924,2]
[338485954,1726695805866,153.0,0.00011929,2]
[338485955,1726695806017,153.0,0.00011933,2]
[338485956,1726695806299,153.0,0.00011938,2]
[338485957,1726695806358,153.0,0.00011943,2]
[338485958,1726695806742,153.0,0.00011947,2]
[338485959,1726695806928,153.0,0.00011952,2]
[338485960,1726695807140,153.0,0.00011956,2]
[338485961,1726695807612,153.0,0.00011961,2]
[338485962,1726695840809,150.0,0.00012021,2]
[338485963,1726695861883,250.0,0.00012007,2]
[338485964,1726695903899,465.87,0.00012103,2]
[338485965,1726695935170,211.42,0.00011976,2]
[338485966,1726695945607,1050.0,0.00011,2]
[338485969,1726695960638,273.69,0.00011976,2]
[338485970,1726695968014,1000.0,0.00011996,2]
[338485971,1726696018209,3600.0,0.00014,30]
[338485972,1726696046723,400.0,0.000125,4]
[338485973,1726696049018,900.0,0.000126,4]
[338485974,1726696050956,1400.0,0.000127,4]
[338485978,1726696147683,170.92,9.582e-05,2]
[338485979,1726696155607,250.0,0.00011978,2]
[338485980,1726696160995,382.1,0.00011978,2]
[338485985,1726696174080,157.36,0.00010959,2]
[338485986,1726696181580,250.0,0.00011978,2]
[338485989,1726696203052,150.0,0.00010959,2]
[338485990,1726696203257,150.0,0.00010959,2]
[338485991,1726696203320,150.0,0.00010959,2]
[338485992,1726696203495,150.0,0.00010959,2]
[338485993,1726696203574,150.0,0.00010959,2]
[338485994,1726696203630,150.0,0.00010959,2]
[338485995,1726696203829,150.0,0.00010959,2]
[338485996,1726696204010,150.0,0.00010959,2]
[338485997,1726696204268,150.0,0.00010959,2]
[338485998,1726696204446,150.0,0.00010959,2]
[338485999,1726696204683,150.0,0.00010959,2]
[338486000,1726696204854,150.0,0.00010959,2]
[338486001,1726696205093,150.0,0.00010959,2]
[338486002,1726696205239,150.0,0.00010959,2]
[338486003,1726696205440,150.0,0.00010959,2]
[338486004,1726696205760,150.0,0.00010959,2]
[338486005,1726696205845,150.0,0.00010959,2]
[338486006,1726696206023,154.67203195,0.00010959,2]
[338486007,1726696229339,451.89,0.00010091,2]
[338486008,1726696229853,451.89,0.00012354,2]
[338486015,1726696231407,-290.832,0.00012747,2]
[338486016,1726696231515,-18067.59308233,0.00012747,2]
[338486017,1726696231526,-460.43123519,0.00012747,2]
[338486018,1726696231538,-16194.37568248,0.00012747,2]
[338486019,1726696231547,-70445.83970371,0.00012747,2]
[338486020,1726696231558,-12224.29769629,0.00012747,2]
[338486021,1726696231567,-150.0,0.00012767,2]
[338486022,1726696231576,-150.0,0.00012769,2]
[338486023,1726696231585,-2035.2267,0.0001278,2]
[338486024,1726696231594,-1554.5756,0.000128,2]
[338486025,1726696231603,-1900.0,0.000128,4]
[338486026,1726696231612,-2576.78985066,0.000128,2]
[338486027,1726696231621,-500.0,0.00012808,2]
[338486028,1726696231631,-800.0,0.00012808,2]
[338486029,1726696231640,-150.0,0.00012827,2]
[338486030,1726696231649,-150.0,0.00012837,2]
[338486031,1726696231659,-552.5,0.00012837,2]
[338486032,1726696231668,-150.0,0.00012865,2]
[338486033,1726696231679,-150.0,0.00012876,2]
[338486034,1726696231688,-175.76798512,0.00012895,2]
[338486035,1726696231698,-500.0,0.00012896,2]
[338486036,1726696231707,-200.0,0.00012896,2]
[338486037,1726696231716,-150.0,0.00012899,2]
[338486038,1726696231726,-6277.54679202,0.000129,2]
[338486039,1726696231762,-1525.1233529,0.000129,2]
[338486040,1726696231773,-2844.58904,0.000129,2]
[338486046,1726696237486,-267.7675,0.000129,2]
[338486047,1726696237680,-15149.999178,0.000129,2]
[338486084,1726696239581,-503.33,0.000129,2]
[338486085,1726696239605,-2396.58360006,0.000129,2]
[338486086,1726696239617,-429.15446819,0.000129,2]
[338486087,1726696239628,-1170.15,0.000129,2]
[338486088,1726696239648,-30100.93406883,0.000129,2]
[338486089,1726696239659,-1872.6116,0.000129,2]
[338486090,1726696239669,-150.0,0.000129,2]
[338486091,1726696239679,-7500.0,0.000129,2]
[338486092,1726696239695,-2400.0,0.000129,4]
[338486093,1726696239704,-172.64894963,0.000129,2]
[338486094,1726696239713,-150.0,0.00012912,2]
[338486095,1726696239723,-150.0,0.00012931,2]
[338486096,1726696239732,-150.0,0.00012948,2]
[338486097,1726696239742,-150.0,0.00012959,2]
[338486098,1726696239751,-150.0,0.00012975,2]
[338486099,1726696239761,-150.0,0.00012985,2]
[338486100,1726696239770,-150.0,0.00012985,2]
[338486101,1726696239780,-281.374,0.00012993,2]
[338486102,1726696239789,-300.490529,0.00012999,2]
[338486103,1726696239799,-814.89877896,0.00012999,3]
[338486104,1726696239808,-2000.0,0.00012999,2]
[338486105,1726696239818,-23440.80033307,0.00013,2]
[338486106,1726696239830,-20398.30730861,0.00013,2]
[338486107,1726696239840,-143751.7770031,0.00013,2]
[338486108,1726696239855,-1095.94638108,0.00013,2]
[338486109,1726696239879,-552.33090042,0.00013,2]
[338486110,1726696239903,-2439.14814662,0.00013,2]
[338486111,1726696239915,-1731065.34371921,0.00013,2]
[338486112,1726696239925,-1109114.9194858,0.00013,2]
[338486113,1726696239941,-269.37,0.00013,2]
[338486114,1726696239951,-1131883.75307456,0.00013,2]
[338486115,1726696239960,-297.83813489,0.00013,2]
[338486116,1726696239970,-151.0,0.00013,2]
[338486117,1726696239979,-151.0,0.00013,2]
[338486118,1726696239988,-151.0,0.00013,2]
[338486119,1726696239997,-425.0,0.00013,2]
[338486120,1726696240006,-151.0,0.00013,2]
[338486121,1726696240016,-151.0,0.00013,2]
[338486122,1726696240026,-151.0,0.00013,2]
[338486123,1726696240036,-151.0,0.00013,2]
[338486124,1726696240045,-151.0,0.00013,2]
[338486125,1726696240056,-151.0,0.00013,2]
[338486126,1726696240065,-157.738697,0.00013,2]
[338486127,1726696240075,-151.0,0.00013,2]
[338486128,1726696240084,-151.0,0.00013,2]
[338486129,1726696240093,-444.599797,0.00013,2]
[338486130,1726696240102,-444.599797,0.00013,2]
[338486131,1726696240112,-151.0,0.00013,2]
[338486132,1726696240121,-151.0,0.00013,2]
[338486133,1726696240130,-151.0,0.00013,2]
[338486134,1726696240139,-151.0,0.00013,2]
[338486135,1726696240148,-151.0,0.00013,2]
[338486136,1726696240158,-151.0,0.00013,2]
[338486137,1726696240168,-151.0,0.00013,2]
[338486138,1726696240178,-151.0,0.00013,2]
[338486139,1726696240187,-151.0,0.00013,2]
[338486140,1726696240197,-151.0,0.00013,2]
[338486141,1726696240206,-151.0,0.00013,2]
[338486142,1726696240216,-151.0,0.00013,2]
[338486143,1726696240225,-151.0,0.00013,2]
[338486144,1726696240235,-151.0,0.00013,2]
[338486145,1726696240249,-151.0,0.00013,2]
[338486146,1726696240259,-151.0,0.00013,2]
[338486147,1726696240269,-151.0,0.00013,2]
[338486148,1726696240279,-151.0,0.00013,2]
[338486149,1726696240289,-265.613989,0.00013,2]
[338486150,1726696240299,-151.0,0.00013,2]
[338486151,1726696240308,-151.0,0.00013,2]
[338486152,1726696240319,-151.0,0.00013,2]
[338486153,1726696240329,-151.0,0.00013,2]
[338486154,1726696240339,-151.0,0.00013,2]
[338486155,1726696240349,-151.0,0.00013,2]
[338486156,1726696240358,-170.841483,0.00013,2]
[338486157,1726696240368,-170.841483,0.00013,2]
[338486158,1726696240378,-170.841483,0.00013,2]
[338486159,1726696240388,-170.841483,0.00013,2]
[338486160,1726696240398,-151.0,0.00013,2]
[338486161,1726696240408,-151.0,0.00013,2]
[338486162,1726696240418,-151.0,0.00013,2]
[338486163,1726696240428,-151.0,0.00013,2]
[338486164,1726696240438,-317.83342,0.00013,2]
[338486165,1726696240448,-317.83342,0.00013,2]
[338486166,1726696240458,-317.83342,0.00013,2]
[338486167,1726696240468,-317.83342,0.00013,2]
[338486168,1726696240478,-151.0,0.00013,2]
[338486169,1726696240488,-151.0,0.00013,2]
[338486170,1726696240497,-151.0,0.00013,2]
[338486171,1726696240507,-151.0,0.00013,2]
[338486172,1726696240517,-220.790441,0.00013,2]
[338486173,1726696240527,-151.0,0.00013,2]
[338486174,1726696240537,-151.0,0.00013,2]